Workbook

Sheet General conditions
D2: GIRAFFE_CALCULATOR v1.0 | E2: Language
E3: EN
D6: GIRAFFE CALCULATOR
C7: GENERAL TERMS AND CONDITIONS OF THE LICENSE AGREEMENT FOR THE USE OF THE SPREADSHEET "GIRAFFE_CALCULATOR"
B14: 1. SUBJECT
C16: With these General Terms and Conditions (or "Agreement"), ROTHO BLAAS SRL, with registered office at I-39040 Cortaccia (BZ), Via dell'Adige 2/1 (hereinafter "RB") grants the user the non-exclusive and revocable right to use the spreadsheet (hereinafter "XLS") free of charge under the following conditions and during the term of this Agreement. In any case, RB does not guarantee the legal and design conformity of the calculations, as RB intends to provide only an indicative calculation tool to be considered as a technical-commercial service within the sales activity. XLS allows the user to perform static calculations only for the products and materials indicated in each of its sections. This Agreement expressly prohibits to use XLS to manufacture products that are not indicated. This Agreement therefore governs the relationship between the User and RB with respect to the use of this spreadsheet. By downloading and using XLS, the user accepts this Agreement and the conditions set out herein.
B18: 2. TECHNICAL-STANDARDS REFERENCES
C20: RB carried out the checks according to the Limit State method in accordance with with EN 1995:2014, EN 1993:2005 and in accordance with the ETA-11/0030 certificate and the tests carried out; they refer exclusively to the assembly support, type of fastening and angle of inclination indicated.
B22: 3. RB RIGHTS AND OBLIGATIONS
C24: RB: a) makes available XLS to the User free of charge, as it is; b) does not provide the user with any technical support for using XLS; c) does not guarantee that XLS complies with the regulations in force or with the calculations design made using it. In particular, as a result of changes to the relevant provisions, such as standards, approvals, etc., the spreadsheet may become invalid in part or in full. d) while reserving the right to update, revise and develop XLS, RB does not assume any obligation towards the user to verify, correct, complete or update the spreadsheet and/or make the updates available to the user.
B26: 4. USER RIGHTS AND OBLIGATIONS
C28: The User declares to use the spreadsheet as a professional excluding any use as a consumer, and to always comply with the following obligations and prohibitions: a) obligation and responsibility to verify that XLS meets the specific needs and that it is compatible with the hardware-software-systems; b) obligation to verify, for each use, the compliance of the calculations made through XLS to the regulations in force and to the project; c) obligation to verify the legal compliance of the calculations made through the Software; d) obligation to use the latest version of XLS made available by the RB contact person, checking at each use for any updates that have occurred; e) prohibition to use XLS for products not indicated in each calculation section; f) obligation to use updated antivirus software that complies with the industry standard in force; g) obligation not to assign the licence to use XLS to third parties and/or in any other way transfer, pledge or lease, rent or share with others or sublicense the rights to use the spreadsheet; h) prohibition to modify or vary XLS in any way, including through third parties. The user commits himself to ask the RB contact person for the last version of the XLS.
B30: 5. COPYRIGHTS
C32: The copyrights on the formulations referred to in the spreadsheet and all the intellectual and industrial property rights underlying them (such as, but not limited to: trademarks, patents, trade secrets, know-how, confidential information) are and remain the exclusive property of RB. This agreement does not transfer any of the above rights to the user.
B34: 6. DURATION, WITHDRAWAL AND TERMINATION
C36: These general conditions and, consequently, the licence to use the spreadsheet, are valid from the moment of downloading it until the termination of its use. The user may withdraw from this Agreement at any time by deleting the XLS and all copies from its systems. RB may withdraw from this Agreement and deactivate the service in the event of a breach of any of the provisions governing the license of use. In the event that RB notifies its termination, the user shall remove the spreadsheet and any copies thereof from its systems.
B38: 7. RESPONSIBILITY
C40: The user is solely responsible for the use of XLS, including, but not limited to, all calculations, printouts, export data made with it and/or for entry errors, protection of data files and maintenance and in general for any use of the spreadsheet. RB does not guarantee and in no case can be held responsible for damages, losses and costs or other consequences, for any reason (warranty for defects, warranty for malfunction, product or legal responsibility, etc.) deriving from: • use of XLS, calculations made, compliance with current legislation, with the design or other User needs; • hardware and software compatibility, viruses, malfunctions, defects, errors or gaps; • failure to update the spreadsheet and/or interruption of the availability of the spreadsheet and/or termination of the agreement for any reason; • infringement of intellectual property rights of third parties. The user confirms to have understood and accepted the disclaimers and limitations of liability and claim of this Agreement. The user also confirms that the spreadsheet is available for free, that the exclusions and limitations are fundamental elements of this Agreement and that RB does not make its spreadsheet available to the user if the exclusions or limitations are deleted or modified in favour of the user.
B42: 8. REFUND
C44: The user agrees to indemnify and hold harmless RB, its subsidiaries and its or its officers, directors, employees, successors and appointees (each individually, ""Beneficiary"", collectively, the ""Beneficiaries"") for the costs incurred in relation to claims made by third parties for damages or losses deriving from the use of the spreadsheet by the user (including, but not limited to, fees and management costs incurred by RB).
B46: 9. MISCELLANEOUS
C48: As indicated on the German version of ALUMEGA technical data sheet, VGU is not available on the German market, where ALUMEGA can be sold only in combination with VGU DE. These general conditions constitute the entire agreement between RB and the user regarding the subject matter and replace all previous, oral or written agreements, as well as any agreements between RB and the user.
B50: 10. LANGUAGE
C52: In the event of differences between versions of these conditions in the various languages, the English text is binding and takes precedence with respect to the translations.
B54: 11. APPLICABLE LAW AND COURT OF JURISDICTION
C56: This agreement and any relationship between the parties is governed exclusively by the Italian law. Any dispute that may arise between the parties in relation to this agreement, that cannot be resolved amicably, shall be brought before the court of Bolzano.
B58: 12. PRIVACY
C60: Refer to the privacy policy available at the link:
C61: https://www.rothoblaas.com/privacy-policy
A63: ACCEPT

Sheet Design
B2: Project Informations
B4: Data | D4: abcde
B5: Project | D5: abcde
B6: Wall number/code | D6: abcde
B8: Design loads | G8: (reverse wind direction)
B10: Ultimate wind load | D10: pult | E10: 0.5 | F10: kPa | G10: =-1*E10 -> -0.50 | H10: kPa | I10: kN/m2
B12: The wind load must be calculated according to the local standard used for the project .
B13: It is required to include the load with the right safety factores according to local standard.
B15: Wall geometry
B17: Wall height | D17: wh | E17: 3 | F17: m | G17: =E17 -> 3 | H17: m
B18: Wall length | D18: wL | E18: 12 | F18: m | G18: =E18 -> 12 | H18: m
B19: Wall Area | D19: wA | E19: =E18*E17 -> 36 | F19: m2 | G19: =E19 -> 36 | H19: m
B21: GIRAFFE geometry
B23: Height | D23: a | E23: 1.8 | F23: m | G23: =E23 -> 1.8 | H23: m
B24: Angle | D24: Φ | E24: 60 | F24: deg | G24: 60 | H24: deg
B25: Horizontal | D25: b | E25: =E23/TAN(RADIANS(E24)) -> 1.04 | F25: m | G25: 1.04 | H25: m
B26: Length | D26: L | E26: =SQRT(E25^2+E23^2) -> 2.08 | F26: m | G26: 2.08 | H26: m
B27: Spacing | D27: s | E27: 3 | F27: m | G27: =E27 -> 3 | H27: m
B29: Reactions
B31: A (horizontal) | E31: =(E10*E27*E17)-((E10*E27*E17^2)/(2*E23)) -> 0.75 | F31: kN | G31: =(G10*G27*G17)-((G10*G27*G17^2)/(2*G23)) -> -0.75 | H31: kN
B32: A (vertical) | E32: =E34 -> 6.50 | F32: kN | G32: =G34 -> -6.50 | H32: kN
B33: B (horizontal) | E33: =(E10*E27*E17^2)/(2*E23) -> 3.75 | F33: kN | G33: =(G10*G27*G17^2)/(2*G23) -> -3.75 | H33: kN
B34: B (vertical) | E34: =E33*TAN(RADIANS(E24)) -> 6.50 | F34: kN | G34: =G33*TAN(RADIANS(G24)) -> -6.50 | H34: kN
B35: C (horizontal) | E35: =E33 -> 3.75 | F35: kN | G35: =G33 -> -3.75 | H35: kN
B36: C (vertical) | E36: =E34 -> 6.50 | F36: kN | G36: =G34 -> -6.50 | H36: kN
I42: DATASHEET
I43: GIRAFFE
B55: GIRAFFE Design
B57: Load | E57: =SQRT(E33^2+E34^2) -> 7.50 | G57: kN
B59: Type | E59: GIR4000
B60: Deflection | E60: 1750
B61: Capacity | E61: =VLOOKUP(E59&"_"&E60,'Resistance values_HIDDEN'!F3:G13,2,0) -> 29.48 | G61: kN | H61: =E57/E61 -> 25%
B62: Bottom and top plate | E62: =IF(E59="GIR6000","GIRPLATEL","GIRPLATE") -> GIRPLATE | H62: =IF(E61>E57,"Pass","Fail") -> Pass
B64: CONNECTIONS CHECK
B66: Head to timber
B68: Design loads
B69: Shear | D69: Fv | E69: =E34 -> 6.50 | F69: kN
B70: Tension | D70: Fax | E70: =E33 -> 3.75 | F70: kN
B72: Connection geometry
B73: Screws | E73: HBS PLATE
B74: Diameter | D74: d1 | E74: 10 | F74: mm
B75: Length | D75: L | E75: 100 | F75: mm
B76: Quantity | E76: 2 | F76: un
B77: Steel plate thickness | E77: =IF(E62="GIRPLATE",4,6) -> 4 | F77: mm
B79: Connector characteristic resistance
B80: Shear | D80: Rv,90,k | E80: =_xlfn.XLOOKUP($E$75,'Resistance values_HIDDEN'!$J$4:$J$8,'Resistance values_HIDDEN'!$K$4:$K$8) -> 5.52 | F80: kN
B81: Axial | D81: Rax,90,k | E81: =_xlfn.XLOOKUP($E$75,'Resistance values_HIDDEN'!$J$4:$J$8,'Resistance values_HIDDEN'!L4:L8) -> 8.78 | F81: kN
B82: Tensile capacity | D82: Rtens,k | E82: =_xlfn.XLOOKUP($E$75,'Resistance values_HIDDEN'!$J$4:$J$8,'Resistance values_HIDDEN'!M4:M8) -> 40.00 | F82: kN
B84: Safety factors
B85: γm: | E85: 1.30 | F85: (Connections) | J85: EN1995-1
B86: kmod: | E86: 0.9 | F86: (SC3/instantaneous, recommended) | J86: EN1995-1
B88: Connection design resistance
B89: Shear capacity | D89: Rv,90,d | E89: =E86*E80/E85 -> 3.82 | F89: kN
B90: Axial capacity | D90: Rax,d | E90: =E86*E81/E85 -> 6.08 | F90: kN
B92: Screw verification
E94: Shear | F94: Axial | G94: Combined
D95: Load | E95: =E69/2 -> 3.25 | F95: =ABS(E70/2) -> 1.88
D96: Capacity | E96: =E89*E76 -> 7.64 | F96: =E90*(E76^0.9) -> 11.34
D97: Utilisation | E97: =E95/E96 -> 42% | F97: =F95/F96 -> 17% | G97: =E97^2+F97^2 -> 21%
E98: =IF(E97<1,"Pass","Fail") -> Pass | F98: =IF(F97<1,"Pass","Fail") -> Pass | G98: =IF(G97<1,"Pass","Fail") -> Pass
B101: Base to | C101: CONCRETE
B103: Design loads
B104: Shear | D104: Fv | E104: =E35 -> 3.75 | F104: kN
B105: Tension | D105: Fax | E105: =E36 -> 6.50 | F105: kN
B107: Connection geometry
B108: Screws | D108: =IF(C101="CONCRETE","SKR","HBS PLATE") -> SKR
B109: Diameter | D109: d1 | E109: =IF(C101="CONCRETE",12,10) -> 12 | F109: mm
B110: Length | D110: L | E110: 100 | F110: mm
B111: Quantity | E111: 2 | F111: un
B113: Connector characteristic resistance
B114: Shear | D114: =IF(C101="CONCRETE","NRk,s/Rk,cp","Rv,90,d") -> NRk,s/Rk,cp | E114: =IF(C101="CONCRETE",32.4,(_xlfn.XLOOKUP($E$110,'Resistance values_HIDDEN'!$J$4:$J$8,'Resistance values_HIDDEN'!$K$4:$K$8))) -> 32.40 | F114: kN
B115: Axial | D115: =IF(C101="CONCRETE","NRk,p","Rax,d") -> NRk,p | E115: =IF(C101="CONCRETE",IF(E113="CRACKED CONCRETE",9.25,8.91),_xlfn.XLOOKUP($E$110,'Resistance values_HIDDEN'!$J$4:$J$8,'Resistance values_HIDDEN'!L4:L8)) -> 8.91 | F115: kN
B116: Due to the various failure modes on the concrete side, a more comprehensive analysis is required. To achieve this, we recommend downloading the MYPROJECT CONCRETE ANCHOR DESIGN software and input the dimensions of the GIRPLATE or GIRPLATEL plate. Subsequently, proceed with the analysis considering the design forces.
B119: Safety factors
B120: kmod | E120: 0.9 | F120: (Service class 3 and instantaneous)
B121: =IF(C101="CONCRETE","γMp","Ym") -> γMp | E121: =IF(C101="CONCRETE",2.1,1.3) -> 2.10 | F121: (tension failure, cracked concrete)
B122: γMs,Mc | E122: 1.50 | F122: (shear failure, cracked concrete)
B124: Connector design resistance
B125: Axial | D125: =IF(C101="CONCRETE","NRd,p","Rv,90,d") -> NRd,p | E125: =E120*E115/E121 -> 3.82 | F125: kN
B126: Shear | D126: =IF(C101="CONCRETE","NRd,s/Rk,cp","Rax,d") -> NRd,s/Rk,cp | E126: =IF(C101="CONCRETE",E121*E114/E121,E114*E120/E121) -> 32.40 | F126: kN
C127: SOFTWARE | E127: DATASHEET SKR
B128: Screw verification
E130: Shear | F130: Axial | G130: Combined
D131: Load | E131: =E104 -> 3.75 | F131: =ABS(E105) -> 6.50
D132: Capacity | E132: =E125*E111 -> 7.64 | F132: =E126*IF(C101="CONCRETE",E111,(E111^0.9)) -> 64.80
D133: Utilisation | E133: =E131/E132 -> 49% | F133: =F131/F132 -> 10% | G133: =E133^2+F133^2 -> 25%
E134: =IF(E133<1,"Pass","Fail") -> Pass | F134: =IF(F133<1,"Pass","Fail") -> Pass | G134: =IF(G133<1,"Pass","Fail") -> Pass
B137: NOTES
B139: The load capacities refer exclusively to the assembly support, type of fastening and angle of inclination indicated.
B141: When fastening the bottom or top plate, the maximum permissible screwing torque of the fastenings elements must be observed.
B143: Prerequisites for the load-bearing capacity assumption are the complete screwing of the screws and compliance with the minimum distances from the edge.

Sheet Resistance values_HIDDEN (hidden)
B2: GIRAFFE | D2: GIRAFFE | E2: Length | F2: GIR&Length | G2: Column1 | I2: Number screws | J2: HBSPLATE 10mm | K2: Column1 | L2: Column2 | M2: Column3
B3: GIR2200 | D3: GIR2200 | E3: 2200 | F3: =D3&"_"&E3 -> GIR2200_2200 | G3: 5.04 | I3: 1 | J3: Length | K3: Rv,90,k | L3: Rax,90,k | M3: Rtens,k
B4: GIR3000 | D4: GIR3000 | E4: 1750 | F4: GIR3000_1750 | G4: 20.86 | I4: 2 | J4: 100 | K4: 5.52 | L4: 8.78 | M4: 40
B5: GIR4000 | D5: GIR3000 | E5: 2400 | F5: GIR3000_2400 | G5: 14.6 | I5: 3 | J5: 120 | K5: 6.67 | L5: 11.12 | M5: 40
B6: GIR6000 | D6: GIR3000 | E6: 3000 | F6: GIR3000_3000 | G6: 6.11 | I6: 4 | J6: 140 | K6: 7.36 | L6: 12.87 | M6: 40
D7: GIR4000 | E7: 1750 | F7: GIR4000_1750 | G7: 29.48 | I7: 5 | J7: 160 | K7: 7.94 | L7: 15.21 | M7: 40
D8: GIR4000 | E8: 2850 | F8: GIR4000_2850 | G8: 14.16 | I8: 6 | J8: 180 | K8: 8.28 | L8: 17.55 | M8: 40
D9: GIR4000 | E9: 4000 | F9: GIR4000_4000 | G9: 4.45
D10: GIR6000 | E10: 3000 | F10: GIR6000_3000 | G10: 59.43 | I10: SKR 10mm
D11: GIR6000 | E11: 4000 | F11: GIR6000_4000 | G11: 29.7 | I11: Number screws | J11: Length | K11: Uncracked concrete | M11: Cracked concrete
D12: GIR6000 | E12: 5000 | F12: GIR6000_5000 | G12: 16.07 | K12: NRk,p | L12: NRk,s/Rk,cp | M12: NRk,p | N12: NRk,s/Rk,cp
D13: GIR6000 | E13: 6000 | F13: GIR6000_6000 | G13: 7.01 | I13: 1 | J13: 100 | K13: 25 | L13: 32.4 | M13: 9 | N13: 32.4
I14: 2 | J14: 120
I15: 3 | J15: 140
B16: UNCRACKED CONCRETE | E16: CONCRETE | I16: 4 | J16: 160
B17: CRACKED CONCRETE | E17: TIMBER | I17: 5 | J17: 200
I18: 6 | J18: 240
J19: 280
J20: 320
J21: 400
C23: Tabla 2.4.- Valores del Factor Kmod
C24: Material | E24: Clase Servicio | F24: Duración de la carga
F25: Perm. | G25: Larga | H25: Media | I25: Corta | J25: Inst.
C26: Madera maciza | E26: 1 | F26: 0.60 | G26: 0.70 | H26: 0.80 | I26: 0.90 | J26: 1.10
C27: Madera laminada encolada | E27: 2 | F27: 0.60 | G27: 0.70 | H27: 0.80 | I27: 0.90 | J27: 1.10
C28: Madera microlaminada | E28: 3 | F28: 0.50 | G28: 0.55 | H28: 0.65 | I28: 0.70 | J28: 0.90
